[Event "Czech Extraliga 2024-25"]
[Site "Czechia"]
[Date "2024.11.03"]
[Round "2.8"]
[White "Zeman, Matyas"]
[Black "Vedral, Oldrich"]
[Result "1/2-1/2"]
[ECO "B07"]
[WhiteElo "2332"]
[BlackElo "2203"]
[Annotator "RC"]
[PlyCount "137"]
[EventDate "2024.09.12"]
[EventType "team-tourn"]
[EventCountry "CZE"]
[SourceTitle "playchess.com"]
[Source "ChessBase"]
[SourceQuality "1"]
[TimeControl "40/5400+30:1800+30"]

1. d4 {[%emt 1:31:00]} Nf6 {[%emt 1:31:00]} 2. Nf3 {[%emt 0:00:30]} g6 {[%emt 0:00:30]} 3. Nbd2 {[%emt 0:00:30]} Bg7 {[%emt 0:00:30]} 4. e4 {[%emt 0:00:30]} d6 {[%emt 0:00:30]} 5. Bb5+ {[%emt 0:00:30]} c6 {[%emt 0:00:30]} 6. Bd3 {[%emt 0:00:30]} Qc7 {[%emt 0:00:30]} 7. O-O {[%emt 0:00:30]} O-O {[%emt 0:00:30]} 8. c3 {[%emt 0:00:30]} e5 {[%emt 0:00:30]} 9. Re1 {[%emt 0:00:30]} Re8 {[%emt 0:00:30]} 10. a4 {[%emt 0:00:30]} Nbd7 {[%emt 0:00:30]} 11. a5 {[%emt 0:00:30]} d5 {[%emt 0:00:30]} 12. exd5 {[%emt 0:00:30]} cxd5 {[%emt 0:00:30]} 13. dxe5 {[%emt 0:00:30]} Nxe5 {[%emt 0:00:30]} 14. Rxe5 {[%emt 0:00:30]} Rxe5 {[%emt 0:00:30]} 15. Nxe5 {[%emt 0:00:30]} Qxe5 {[%emt 0:00:30]} 16. Nf3 {[%emt 0:00:30]} Qc7 {[%emt 0:00:30]} 17. h3 {[%emt 0:00:30]} Bd7 {[%emt 0:00:30]} 18. Be3 {[%emt 0:00:30]} a6 {[%emt 0:00:30]} 19. Bb6 {[%emt 0:00:30]} Qd6 {[%emt 0:00:30]} 20. Qd2 {[%emt 0:00:30]} Re8 {[%emt 0:00:30]} 21. Re1 {[%emt 0:00:30]} Rxe1+ {[%emt 0:00:30]} 22. Qxe1 {[%emt 0:00:30]} Bc6 {[%emt 0:00:30]} 23. Nd4 {[%emt 0:00:30]} Bd7 {[%emt 0:00:30]} 24. Qe3 {[%emt 0:00:30]} Nh5 {[%emt 0:00:30]} 25. Ne2 {[%emt 0:00:30]} Qe6 {[%emt 0:00:30]} 26. Bd4 {[%emt 0:00:30]} Qxe3 {[%emt 0:00:30]} 27. Bxe3 {[%emt 0:00:30]} Be5 {[%emt 0:00:30]} 28. g4 {[%emt 0:00:30]} Ng7 {[%emt 0:00:30]} 29. f4 {[%emt 0:00:30]} Bc7 {[%emt 0:00:30]} 30. Bb6 {[%emt 0:00:30]} Bd6 {[%emt 0:00:30]} 31. Kg2 {[%emt 0:00:30]} Ne6 {[%emt 0:00:30]} 32. Kf3 {[%emt 0:00:30]} Kf8 {[%emt 0:00:30]} 33. Be3 {[%emt 0:00:30]} Bc6 {[%emt 0:00:30]} 34. Nd4 {[%emt 0:00:30]} Ba4 {[%emt 0:00:30]} 35. Nxe6+ {[%emt 0:00:30]} fxe6 {[%emt 0:00:30]} 36. Bd4 {[%emt 0:00:30]} Kf7 {[%emt 0:00:30]} 37. Be5 {[%emt 0:00:30]} Bc5 {[%emt 0:00:30]} 38. b4 {[%emt 0:00:30]} Ba7 {[%emt 0:00:30]} 39. h4 {[%emt 0:00:30]} Bc6 {[%emt 0:00:30]} 40. Kg3 {[%emt 0:00:30]} h6 {[%emt 0:00:30]} 41. h5 {[%emt 0:30:30]} gxh5 {[%emt 0:30:30]} 42. gxh5 {[%emt 0:00:30]} Bd7 {[%emt 0:00:30]} 43. Kg4 {[%emt 0:00:30]} Be3 {[%emt 0:00:30]} 44. Bg6+ {[%emt 0:00:30]} Ke7 {[%emt 0:00:30]} 45. Kf3 {[%emt 0:00:30]} Bd2 {[%emt 0:00:30]} 46. Ke2 {[%emt 0:00:30]} Bc1 {[%emt 0:00:30]} 47. Kd3 {[%emt 0:00:30]} Bb5+ 48. Kd4 {[%emt 0:00:30]} Be2 {[%emt 0:01:00]} 49. f5 {[%emt 0:00:30]} exf5 {[%emt 0:00:30]} 50. Bxf5 {[%emt 0:00:30]} Kd8 {[%emt 0:00:30]} 51. Bg6 {[%emt 0:00:30]} Bf3 {[%emt 0:00:30]} 52. Bf7 {[%emt 0:00:30]} Bd2 {[%emt 0:00:30]} 53. Kc5 {[%emt 0:00:30]} Be3+ {[%emt 0:00:30]} 54. Bd4 {[%emt 0:00:30]} Bxd4+ {[%emt 0:00:30]} 55. Kxd4 {[%emt 0:00:30]} Kc7 {[%emt 0:00:30]} 56. Kc5 {[%emt 0:00:30]} Kc8 {[%emt 0:00:30]} 57. Kd6 {[%emt 0:00:30]} Kb8 {[%emt 0:00:30]} 58. Bg6 {[%emt 0:00:30]} Ka7 {[%emt 0:00:30]} 59. Ke5 {[%emt 0:00:30]} b6 {[%emt 0:00:30]} 60. Kf6 {[%emt 0:00:30]} bxa5 {[%emt 0:00:30]} 61. bxa5 {[%emt 0:00:30]} Kb7 {[%emt 0:00:30]} 62. Kg7 {[%emt 0:00:30]} Kc6 {[%emt 0:00:30]} 63. Kxh6 {[%emt 0:00:30]} Kb5 {[%emt 0:00:30]} 64. Kg5 {[%emt 0:00:30]} Bxh5 {[%emt 0:00:30]} 65. Bxh5 {[%emt 0:00:30]} Kc4 {[%emt 0:00:30]} 66. Be2+ {[%emt 0:00:30]} Kxc3 {[%emt 0:00:30]} 67. Bxa6 {[%emt 0:00:30]} Kb4 {[%emt 0:00:30]} 68. Bb7 {[%emt 0:00:30]} Kxa5 {[%emt 0:00:30]} 69. Bxd5 {[%emt 0:00:30]} 1/2-1/2